fUST/lending_fUST_20250107
["ID","MTS","AMOUNT","RATE_DAILY","PERIOD"]
[347922880,1736206241128,-498.01068938,0.00019178,2]
[347922881,1736206241139,-1.98931062,0.00019178,2]
[347922882,1736206241148,-403.86816944,0.00019178,2]
[347922883,1736206241336,-96.13183056,0.00019178,2]
[347922884,1736206241345,-500.0,0.00019178,2]
[347922885,1736206241355,-957.59,0.00019178,2]
[347922886,1736206241364,-500.0,0.00019178,2]
[347922887,1736206241373,-509.23511749,0.00019178,2]
[347922888,1736206241383,-500.0,0.00019178,2]
[347922889,1736206241392,-649.16,0.00019178,2]
[347922890,1736206241401,-500.0,0.00019178,2]
[347922891,1736206241410,-500.0,0.00019178,2]
[347922892,1736206241420,-500.0,0.00019178,2]
[347922893,1736206241429,-465.8966661,0.00019178,2]
[347922922,1736206243788,-34.1033339,0.00019178,2]
[347922923,1736206243798,-500.0,0.00019178,2]
[347922924,1736206243809,-2023.95,0.00019178,2]
[347922925,1736206243818,-500.0,0.00019178,2]
[347922926,1736206243828,-500.0,0.00019178,2]
[347922927,1736206243837,-500.0,0.00019178,2]
[347922928,1736206243846,-500.0,0.00019178,2]
[347922929,1736206243855,-500.0,0.00019178,2]
[347922930,1736206243865,-1248.86,0.00019178,2]
[347922931,1736206243874,-983.85,0.00019178,2]
[347922932,1736206243884,-500.0,0.00019178,2]
[347922933,1736206243894,-500.0,0.00019178,2]
[347922934,1736206243905,-500.0,0.00019178,2]
[347922935,1736206243914,-500.0,0.00019178,2]
[347922936,1736206243924,-500.0,0.00019178,2]
[347922937,1736206243934,-500.0,0.00019178,2]
[347922938,1736206243943,-500.0,0.00019178,2]
[347922939,1736206243952,-3417.12,0.00019178,2]
[347922940,1736206243962,-500.0,0.00019178,2]
[347922941,1736206243971,-500.0,0.00019178,2]
[347922942,1736206243980,-500.0,0.00019178,2]
[347922943,1736206243989,-500.0,0.00019178,2]
[347922944,1736206243998,-500.0,0.00019178,2]
[347922945,1736206244008,-500.0,0.00019178,2]
[347922946,1736206244017,-1653.95,0.00019178,2]
[347922947,1736206244027,-1089.87,0.00019178,2]
[347922948,1736206244036,-500.0,0.00019178,2]
[347922949,1736206244045,-500.0,0.00019178,2]
[347922950,1736206244054,-500.0,0.00019178,2]
[347922951,1736206244063,-500.0,0.00019178,2]
[347922952,1736206244073,-500.0,0.00019178,2]
[347922953,1736206244081,-531.05,0.00019178,2]
[347922954,1736206244091,-500.0,0.00019178,2]
[347922955,1736206244100,-500.0,0.00019178,2]
[347922956,1736206244109,-500.0,0.00019178,2]
[347922957,1736206244119,-500.0,0.00019178,2]
[347922958,1736206244128,-500.0,0.00019178,2]
[347922959,1736206244137,-500.0,0.00019178,2]
[347922960,1736206244146,-2131.8,0.00019178,2]
[347922961,1736206244156,-500.0,0.00019178,2]
[347922962,1736206244165,-500.0,0.00019178,2]
[347922963,1736206244175,-500.0,0.00019178,2]
[347922964,1736206244184,-500.0,0.00019178,2]
[347922965,1736206244194,-23025.51724366,0.00019178,2]
[347922977,1736206246759,-2877.40275634,0.00019178,2]
[347922978,1736206246769,-521.37724118,0.00019178,2]
[347922979,1736206246779,-151.86040932,0.00019178,2]
[347922980,1736206246791,-2483.96959068,0.00019178,2]
[347922981,1736206246802,-500.0,0.00019178,2]
[347922982,1736206246811,-500.0,0.00019178,2]
[347922983,1736206246820,-500.0,0.00019178,2]
[347922984,1736206246830,-763.47,0.00019178,2]
[347922985,1736206246840,-1086.95,0.00019178,2]
[347922986,1736206246850,-1000.0,0.00019178,7]
[347922987,1736206246859,-588.85,0.00019178,2]
[347922988,1736206246870,-500.0,0.00019178,2]
[347922989,1736206246880,-1108.75,0.00019178,2]
[347922990,1736206246890,-558.68,0.00019178,2]
[347922991,1736206246903,-1259.75,0.00019178,2]
[347922992,1736206246913,-500.0,0.00019178,2]
[347922994,1736206246923,-500.0,0.00019178,2]
[347922996,1736206246933,-500.0,0.00019178,2]
[347922998,1736206246942,-1269.67,0.00019178,2]
[347923000,1736206246952,-500.0,0.00019178,2]
[347923002,1736206246962,-500.0,0.00019178,2]
[347923004,1736206246972,-500.0,0.00019178,2]
[347923006,1736206246981,-500.0,0.00019178,2]
[347923008,1736206246991,-500.0,0.00019178,2]
[347923009,1736206247000,-1083.68,0.00019178,2]
[347923010,1736206247011,-500.0,0.00019178,2]
[347923011,1736206247022,-500.0,0.00019178,2]
[347923012,1736206247031,-500.0,0.00019178,2]
[347923013,1736206247041,-500.0,0.00019178,2]
[347923014,1736206247050,-500.0,0.00019178,2]
[347923015,1736206247060,-500.0,0.00019178,2]
[347923016,1736206247070,-2566.29,0.00019178,2]
[347923017,1736206247079,-208.36951266,0.00019178,2]
[347923018,1736206247088,-500.0,0.00019178,2]
[347923019,1736206247097,-500.0,0.00019178,2]
[347923020,1736206247106,-276.61280422,0.00019178,2]
[347923021,1736206247119,-223.38719578,0.00019178,2]
[347923022,1736206247128,-454.41108619,0.00019178,2]
[347923023,1736206247139,-693.24891381,0.00019178,2]
[347923024,1736206247149,-15.06374859,0.00019178,2]
[347923025,1736206247161,-484.93625141,0.00019178,2]
[347923026,1736206247171,-618.59562481,0.00019178,2]
[347923027,1736206247197,-985.994892,0.00019178,2]
[347923028,1736206247209,-345.964,0.00019178,2]
[347923033,1736207236130,-1628.19450868,0.00017574,2]
[347923034,1736207245130,-3371.80549132,0.00017574,2]
[347923035,1736207245153,-262.3219926,0.00018244,2]
[347923036,1736207245395,-497.588,0.0001848,2]
[347923037,1736207245418,-662.84416379,0.000189,2]
[347923038,1736207245441,-462.32,0.00019,3]
[347923039,1736207245463,-300.0,0.00019028,2]
[347923040,1736207245485,-168.0,0.00019029,2]
[347923041,1736207245509,-168.0,0.00019029,2]
[347923042,1736207245530,-168.0,0.00019029,2]
[347923043,1736207245560,-168.0,0.00019029,2]
[347923044,1736207245605,-171.87,0.00019029,2]
[347923045,1736207245648,-209.54025669,0.00019078,2]
[347923046,1736207245695,-302.84859387,0.00019082,2]
[347923047,1736207245742,-307.1757914,0.000191,2]
[347923048,1736207245787,-153.5419161,0.000191,2]
[347923049,1736207245818,-352.9020598,0.000191,2]
[347923050,1736207245839,-428.2658742,0.000191,2]
[347923051,1736207245861,-159.7757554,0.000191,2]
[347923052,1736207245882,-152.0,0.00019148,2]
[347923053,1736207245902,-500.0,0.00019173,2]
[347923054,1736207245922,-500.0,0.00019173,2]
[347923055,1736207245943,-263.935,0.00019176,2]
[347923056,1736207245964,-500.0,0.00019177,2]
[347923057,1736207245985,-500.0,0.00019177,2]
[347923058,1736207246007,-500.0,0.00019177,2]
[347923059,1736207246027,-500.0,0.00019177,2]
[347923060,1736207246050,-500.0,0.00019177,2]
[347923061,1736207246072,-500.0,0.00019177,2]
[347923062,1736207246095,-500.0,0.00019177,2]
[347923063,1736207246116,-500.0,0.00019177,2]
[347923064,1736207246137,-500.0,0.00019177,2]
[347923065,1736207246159,-500.0,0.00019177,2]
[347923066,1736207246180,-500.0,0.00019177,2]
[347923067,1736207246212,-500.0,0.00019177,2]
[347923068,1736207246237,-203.63196263,0.00019177,2]
[347923069,1736207246259,-200.69159421,0.00019177,2]
[347923070,1736207246285,-500.0,0.00019177,2]
[347923071,1736207246309,-371.2133721,0.00019177,2]
[347923072,1736207345131,160.346758,0.00013973,2]
[347923106,1736207431869,-300.0,0.00018183,2]
[347923108,1736207431879,-5199.25649345,0.00018184,2]
[347923113,1736207431921,-6075.44707755,0.00018184,2]
[347923191,1736207437756,-8651.6370695,0.00018184,2]
[347923192,1736207437766,-441.89610919,0.000189,2]
[347923193,1736207437775,-5000.0,0.00018985,2]
[347923194,1736207437785,-302.84859387,0.00019081,2]
[347923195,1736207437794,-500.0,0.00019173,2]
[347923196,1736207437805,-153.48,0.00019177,2]
[347923197,1736207437815,-128.7866279,0.00019177,2]
[347923198,1736207437825,-500.0,0.00019177,2]
[347923199,1736207437835,-500.0,0.00019177,2]
[347923200,1736207437844,-500.0,0.00019177,2]
[347923201,1736207437854,-500.0,0.00019177,2]
[347923202,1736207437863,-164.79987922,0.00019177,2]
[347923203,1736207437873,-500.0,0.00019177,2]
[347923204,1736207437883,-500.0,0.00019177,2]
[347923205,1736207437892,-260.35609458,0.00019177,2]
[347923206,1736207437905,-239.64390542,0.00019177,2]
[347923207,1736207437914,-500.0,0.00019177,2]
[347923208,1736207437924,-500.0,0.00019177,2]
[347923210,1736207437933,-500.0,0.00019177,2]
[347923212,1736207437943,-500.0,0.00019177,2]
[347923214,1736207437952,-500.0,0.00019177,2]
[347923216,1736207437962,-500.0,0.00019177,2]
[347923218,1736207437971,-500.0,0.00019177,2]
[347923220,1736207437980,-200.0,0.00019177,2]
[347923221,1736207437990,-500.0,0.00019177,2]
[347923222,1736207438000,-500.0,0.00019177,2]
[347923223,1736207438009,-500.0,0.00019177,2]
[347923224,1736207438020,-500.0,0.00019177,2]
[347923225,1736207438029,-500.0,0.00019177,2]
[347923226,1736207438039,-500.0,0.00019177,2]
[347923227,1736207438049,-500.0,0.00019177,2]
[347923228,1736207438059,-500.0,0.00019177,2]
[347923229,1736207438068,-500.0,0.00019177,2]
[347923230,1736207438078,-500.0,0.00019177,2]
[347923231,1736207438087,-500.0,0.00019177,2]
[347923232,1736207438098,-500.0,0.00019177,2]
[347923233,1736207438108,-531.58833215,0.00019177,2]
[347923234,1736207438118,-500.0,0.00019177,2]
[347923235,1736207438128,-500.0,0.00019177,2]
[347923236,1736207438138,-500.0,0.00019177,2]
[347923237,1736207438148,-500.0,0.00019177,2]
[347923238,1736207438157,-500.0,0.00019177,2]
[347923239,1736207438166,-500.0,0.00019177,2]
[347923240,1736207438175,-500.0,0.00019177,2]
[347923241,1736207438185,-500.0,0.00019177,2]
[347923242,1736207438195,-500.0,0.00019177,2]
[347923243,1736207438204,-500.0,0.00019177,2]
[347923244,1736207438214,-500.0,0.00019177,2]
[347923245,1736207438224,-500.0,0.00019177,2]
[347923246,1736207438233,-509.19951691,0.00019177,2]
[347923247,1736207438244,-500.0,0.00019177,2]
[347923248,1736207438254,-500.0,0.00019177,2]
[347923249,1736207438266,-500.0,0.00019177,2]
[347923250,1736207438277,-500.0,0.00019177,2]
[347923251,1736207438287,-500.0,0.00019177,2]
[347923252,1736207438297,-500.0,0.00019177,2]
[347923253,1736207438307,-500.0,0.00019177,2]
[347923254,1736207438316,-500.0,0.00019177,2]
[347923255,1736207438325,-500.0,0.00019177,2]
[347923256,1736207438335,-500.0,0.00019177,2]
[347923257,1736207438344,-500.0,0.00019177,2]
[347923258,1736207438354,-500.0,0.00019177,2]
[347923259,1736207438364,-500.0,0.00019177,2]
[347923260,1736207438373,-500.0,0.00019177,2]
[347923261,1736207438385,-500.0,0.00019177,2]
[347923262,1736207438395,-500.0,0.00019177,2]
[347923263,1736207438404,-500.0,0.00019177,2]
[347923264,1736207438414,-500.0,0.00019177,2]
[347923265,1736207438424,-500.0,0.00019177,2]
[347923266,1736207438434,-500.0,0.00019177,2]
[347923267,1736207438447,-163.20201657,0.00019177,2]
[347923268,1736207438456,-500.0,0.00019177,2]
[347923269,1736207438465,-500.0,0.00019177,2]
[347923270,1736207438476,-500.0,0.00019177,2]
[347923271,1736207438485,-590.08120471,0.00019177,2]
[347923272,1736207438495,-590.08120471,0.00019177,2]
[347923273,1736207438504,-590.08120471,0.00019177,2]
[347923274,1736207438514,-232.83604335,0.00019177,2]
[347923275,1736207438527,-357.24516136,0.00019177,2]
[347923276,1736207438537,-590.08120471,0.00019177,2]
[347923277,1736207438546,-353.14589592,0.00019177,2]
[347923278,1736207438879,-236.93530879,0.00019177,2]
[347923279,1736207438888,-590.08120471,0.00019177,2]
[347923280,1736207438898,-590.08120471,0.00019177,2]
[347923281,1736207438908,-539.49581553,0.00019177,2]
[347923282,1736207438924,-50.58538918,0.00019177,2]
[347923283,1736207438934,-590.08120471,0.00019177,2]
[347923284,1736207438943,-590.08120471,0.00019177,2]
[347923285,1736207438952,-345.46288014,0.00019177,2]
[347923286,1736207438965,-244.61832457,0.00019177,2]
[347923287,1736207438974,-590.08120471,0.00019177,2]
[347923288,1736207438984,-590.08120471,0.00019177,2]
[347923289,1736207438993,-590.08120471,0.00019177,2]
[347923290,1736207439002,-590.08120471,0.00019177,2]
[347923291,1736207439013,-590.08120471,0.00019177,2]
[347923292,1736207439022,-590.08120471,0.00019177,2]
[347923293,1736207439032,-590.08120471,0.00019177,2]
[347923294,1736207439042,-590.08120471,0.00019177,2]
[347923295,1736207439052,-590.08120471,0.00019177,2]
[347923296,1736207439062,-590.08120471,0.00019177,2]
[347923297,1736207439072,-590.08120471,0.00019177,2]
[347923298,1736207439082,-590.08120471,0.00019177,2]
[347923299,1736207439092,-590.08120471,0.00019177,2]
[347923300,1736207439102,-590.08120471,0.00019177,2]
[347923301,1736207439112,-590.08120471,0.00019177,2]
[347923302,1736207439122,-590.08120471,0.00019177,2]
[347923303,1736207439131,-590.08120471,0.00019177,2]
[347923304,1736207439141,-381.4483652,0.00019177,2]
[347923305,1736207439154,-208.63283951,0.00019177,2]
[347923306,1736207439164,-500.0,0.00019177,2]
[347923307,1736207439174,-590.0812047,0.00019177,2]
[347923308,1736207439183,-590.08120469,0.00019177,2]
[347923309,1736207439193,-173.91294285,0.00019177,2]
[347923314,1736207439910,-17.90462617,0.00019177,2]
[347923316,1736207439920,-390.35517832,0.00019177,2]
[347923317,1736207439930,-500.0,0.00019178,2]
[347923319,1736207439939,-198.87659846,0.00019178,2]
[347923322,1736207439962,-301.12340154,0.00019178,2]
[347923323,1736207439972,-500.0,0.00019178,2]
[347923324,1736207439981,-243.27659846,0.00019178,2]
[347923325,1736207439992,-120.74385312,0.00019178,2]
[347923326,1736207440002,-214.23738916,0.00019178,2]
[347923327,1736207440014,-285.76261084,0.00019178,2]
[347923328,1736207440024,-500.0,0.00019178,2]
[347923329,1736207440033,-500.0,0.00019178,2]
[347923330,1736207440043,-10.46403166,0.00019178,2]
[347923331,1736207440054,-489.53596834,0.00019178,2]
[347923332,1736207440063,-377.52356359,0.00019178,2]
[347923333,1736207440075,-122.47643641,0.00019178,2]
[347923334,1736207440084,-500.0,0.00019178,2]
[347923335,1736207440094,-574.81109986,0.00019178,2]
[347923336,1736207440104,-500.0,0.00019178,2]
[347923337,1736207440114,-500.0,0.00019178,2]
[347923338,1736207440124,-500.0,0.00019178,2]
[347923339,1736207440133,-500.0,0.00019178,2]
[347923340,1736207440143,-500.0,0.00019178,2]
[347923341,1736207440152,-500.0,0.00019178,2]
[347923342,1736207440161,-500.0,0.00019178,2]
[347923343,1736207440171,-500.0,0.00019178,2]
[347923344,1736207440180,-500.0,0.00019178,2]
[347923345,1736207440189,-500.0,0.00019178,2]
[347923346,1736207440199,-500.0,0.00019178,2]
[347923347,1736207440208,-500.0,0.00019178,2]
[347923348,1736207440218,-500.0,0.00019178,2]
[347923349,1736207440227,-500.0,0.00019178,2]
[347923350,1736207440236,-500.0,0.00019178,2]
[347923351,1736207440246,-570.6874675,0.00019178,2]
[347923352,1736207440256,-500.0,0.00019178,2]
[347923353,1736207440266,-500.0,0.00019178,2]
[347923354,1736207440275,-500.0,0.00019178,2]
[347923355,1736207440285,-500.0,0.00019178,2]
[347923356,1736207440295,-521.70780296,0.00019178,2]
[347923357,1736207440304,-500.0,0.00019178,2]
[347923358,1736207440314,-500.0,0.00019178,2]
[347923359,1736207440323,-500.0,0.00019178,2]
[347923360,1736207440333,-500.0,0.00019178,2]
[347923361,1736207440342,-500.0,0.00019178,2]
[347923362,1736207440352,-589.19,0.00019178,2]
[347923363,1736207440361,-592.43,0.00019178,2]
[347923364,1736207440371,-500.0,0.00019178,2]
[347923365,1736207440380,-500.0,0.00019178,2]
[347923366,1736207440390,-500.0,0.00019178,2]
[347923367,1736207440400,-500.0,0.00019178,2]
[347923368,1736207440409,-831.26,0.00019178,2]
[347923369,1736207440419,-500.0,0.00019178,2]
[347923370,1736207440428,-782.24,0.00019178,2]
[347923371,1736207440438,-500.0,0.00019178,2]
[347923372,1736207440450,-500.0,0.00019178,2]
[347923373,1736207440459,-500.0,0.00019178,2]
[347923374,1736207440468,-500.0,0.00019178,2]
[347923375,1736207440478,-500.0,0.00019178,2]
[347923376,1736207440487,-745.19719327,0.00019178,2]
[347923377,1736207440500,-174.85280673,0.00019178,2]
[347923378,1736207440509,-500.0,0.00019178,2]
[347923379,1736207440518,-390.66437519,0.00019178,2]
[347923380,1736207440528,-500.0,0.00019178,2]
[347923381,1736207440537,-500.0,0.00019178,2]
[347923382,1736207440547,-2932.04284248,0.00019178,2]
[347923383,1736207440558,-457.5,0.00019178,2]
[347923384,1736207440569,-1258.88715752,0.00019178,2]
[347923385,1736207440579,-500.0,0.00019178,2]
[347923386,1736207440588,-500.0,0.00019178,2]
[347923387,1736207440598,-500.0,0.00019178,2]
[347923388,1736207440607,-500.0,0.00019178,2]
[347923389,1736207440616,-500.0,0.00019178,2]
[347923390,1736207440625,-500.0,0.00019178,2]
[347923391,1736207440634,-495.88999237,0.00019178,2]
[347923392,1736207440646,-4.11000763,0.00019178,2]
[347923393,1736207440655,-500.0,0.00019178,2]
[347923394,1736207440664,-500.0,0.00019178,2]
[347923395,1736207440673,-793.49,0.00019178,2]
[347923396,1736207440683,-500.0,0.00019178,2]
[347923397,1736207440693,-500.0,0.00019178,2]
[347923398,1736207440702,-500.0,0.00019178,2]
[347923399,1736207440711,-7156.15,0.00019178,2]
[347923400,1736207440721,-500.0,0.00019178,2]
[347923401,1736207440730,-500.0,0.00019178,2]
[347923402,1736207440740,-500.0,0.00019178,2]
[347923403,1736207440749,-500.0,0.00019178,2]
[347923404,1736207440759,-500.0,0.00019178,2]
[347923405,1736207440768,-500.0,0.00019178,2]
[347923406,1736207440778,-500.0,0.00019178,2]
[347923407,1736207440787,-500.0,0.00019178,2]
[347923408,1736207440797,-500.0,0.00019178,2]
[347923409,1736207440806,-500.0,0.00019178,2]
[347923410,1736207440815,-500.0,0.00019178,2]
[347923411,1736207440824,-879.45,0.00019178,2]
[347923412,1736207440834,-3274.74,0.00019178,2]
[347923413,1736207440843,-500.0,0.00019178,2]
[347923414,1736207440852,-500.0,0.00019178,2]
[347923415,1736207440862,-500.0,0.00019178,2]
[347923416,1736207440871,-3448.16,0.00019178,2]
[347923417,1736207440881,-277.30043689,0.00019178,2]
[347923418,1736207440890,-500.0,0.00019178,2]
[347923419,1736207440899,-500.0,0.00019178,2]
[347923420,1736207440909,-500.0,0.00019178,2]
[347923421,1736207440918,-500.0,0.00019178,2]
[347923422,1736207440927,-500.0,0.00019178,2]
[347923423,1736207440936,-500.0,0.00019178,2]
[347923424,1736207440945,-500.0,0.00019178,2]
[347923425,1736207440954,-500.0,0.00019178,2]
[347923426,1736207440964,-500.0,0.00019178,2]
[347923427,1736207440974,-500.0,0.00019178,2]
[347923428,1736207440983,-500.0,0.00019178,2]
[347923429,1736207440992,-500.0,0.00019178,2]
[347923430,1736207441001,-500.0,0.00019178,2]
[347923431,1736207441011,-1939.62,0.00019178,2]
[347923432,1736207441021,-500.0,0.00019178,2]
[347923433,1736207441030,-500.0,0.00019178,2]
[347923434,1736207441039,-1196.82,0.00019178,2]
[347923435,1736207441048,-500.0,0.00019178,2]
[347923436,1736207441058,-500.0,0.00019178,2]
[347923437,1736207441067,-942.86,0.00019178,2]
[347923438,1736207441076,-503.40553746,0.00019178,2]
[347923439,1736207441086,-500.0,0.00019178,2]
[347923440,1736207441095,-1190.12,0.00019178,2]
[347923441,1736207441105,-1190.12,0.00019178,2]
[347923442,1736207441115,-1190.12,0.00019178,2]
[347923443,1736207441124,-1190.12,0.00019178,2]
[347923444,1736207441133,-500.0,0.00019178,2]
[347923445,1736207441143,-1190.12,0.00019178,2]
[347923446,1736207441152,-500.0,0.00019178,2]
[347923447,1736207441161,-1190.12,0.00019178,2]
[347923448,1736207441172,-1190.12,0.00019178,2]
[347923449,1736207441181,-1190.12,0.00019178,2]
[347923450,1736207441190,-622.11,0.00019178,2]
[347923451,1736207441200,-500.0,0.00019178,2]
[347923452,1736207441209,-500.0,0.00019178,2]
[347923453,1736207441218,-1190.12,0.00019178,2]
[347923454,1736207441227,-1190.12,0.00019178,2]
[347923455,1736207441236,-500.0,0.00019178,2]
[347923456,1736207441245,-1190.12,0.00019178,2]
[347923457,1736207441255,-500.0,0.00019178,2]
[347923458,1736207441266,-500.0,0.00019178,2]
[347923459,1736207441275,-1585.03,0.00019178,2]
[347923460,1736207441284,-500.0,0.00019178,2]
[347923461,1736207441294,-500.0,0.00019178,2]
[347923462,1736207441303,-508.92,0.00019178,2]
[347923463,1736207441312,-500.0,0.00019178,2]
[347923464,1736207441321,-500.0,0.00019178,2]
[347923465,1736207441330,-1044.46,0.00019178,2]
[347923466,1736207441339,-2042.97,0.00019178,2]
[347923467,1736207441349,-2459.36,0.00019178,2]
[347923468,1736207441358,-500.0,0.00019178,2]
[347923469,1736207441367,-500.0,0.00019178,2]
[347923470,1736207441376,-500.0,0.00019178,2]
[347923471,1736207441385,-500.0,0.00019178,2]
[347923472,1736207441394,-500.0,0.00019178,2]
[347923473,1736207441403,-500.0,0.00019178,2]
[347923474,1736207441412,-500.0,0.00019178,2]
[347923475,1736207441421,-500.0,0.00019178,2]
[347923476,1736207441430,-500.0,0.00019178,2]
[347923477,1736207441441,-500.0,0.00019178,2]
[347923478,1736207441451,-500.0,0.00019178,2]
[347923479,1736207441460,-500.0,0.00019178,2]
[347923480,1736207441469,-1041.66,0.00019178,2]
[347923481,1736207441478,-500.0,0.00019178,2]
[347923482,1736207441488,-500.0,0.00019178,2]
[347923483,1736207441498,-1207.26,0.00019178,2]
[347923484,1736207441507,-500.0,0.00019178,2]
[347923485,1736207441520,-7781.07501838,0.00019178,2]
[347923486,1736207441533,-1856.79220046,0.00019178,2]
[347923510,1736207442764,-5000.0,0.00018002,2]
[347923511,1736207442774,-7593.08507594,0.00019178,2]
[347923512,1736207442785,-1441.21458112,0.00019178,2]
[347923513,1736207442796,-680.4484889,0.00019178,2]
[347923526,1736207445912,-5471.0146352,0.00019178,2]
[347923527,1736207445922,-595.78,0.00019178,2]
[347923528,1736207445931,-500.0,0.00019178,2]
[347923529,1736207445940,-1216.77,0.00019178,2]
[347923530,1736207445950,-566.06,0.00019178,2]
[347923531,1736207445959,-2526.0,0.00019178,2]
[347923532,1736207445969,-1038.52,0.00019178,2]
[347923533,1736207445978,-731.66,0.00019178,2]
[347923534,1736207445987,-386.10001,0.00019178,2]
[347923535,1736207445997,-500.0,0.00019178,2]
[347923536,1736207446007,-500.0,0.00019178,2]
[347923537,1736207446021,-505.97,0.00019178,2]
[347923538,1736207446030,-500.0,0.00019178,2]
[347923539,1736207446040,-500.0,0.00019178,7]
[347923540,1736207446050,-143.58646061,0.00019178,2]
[347923541,1736207446062,-356.41353939,0.00019178,2]
[347923542,1736207446072,-1062.55,0.00019178,2]
[347923543,1736207446081,-500.0,0.00019178,2]
[347923544,1736207446091,-500.0,0.00019178,2]
[347923545,1736207446100,-500.0,0.00019178,2]
[347923546,1736207446110,-500.0,0.00019178,2]
[347923547,1736207446119,-500.0,0.00019178,2]
[347923548,1736207446130,-500.0,0.00019178,2]
[347923549,1736207446140,-500.0,0.00019178,2]
[347923550,1736207446149,-1099.84,0.00019178,2]
[347923551,1736207446159,-500.0,0.00019178,2]
[347923552,1736207446169,-500.0,0.00019178,2]
[347923553,1736207446178,-500.0,0.00019178,2]
[347923554,1736207446187,-500.0,0.00019178,2]
[347923555,1736207446197,-500.0,0.00019178,2]
[347923556,1736207446207,-500.0,0.00019178,2]
[347923557,1736207446216,-500.0,0.00019178,2]
[347923558,1736207446225,-500.0,0.00019178,2]
[347923559,1736207446235,-878.72,0.00019178,2]
[347923560,1736207446245,-500.0,0.00019178,2]
[347923561,1736207446255,-231.5219816,0.00019178,2]
[347923562,1736207446265,-326.31130472,0.00019178,2]
[347923563,1736207446276,-500.0,0.00019178,2]
[347923564,1736207446285,-500.0,0.00019178,2]
[347923565,1736207446295,-500.0,0.00019178,2]
[347923566,1736207446305,-500.0,0.00019178,2]
[347923567,1736207446314,-777.36,0.00019178,2]
[347923568,1736207446324,-500.0,0.00019178,2]
[347923569,1736207446333,-500.0,0.00019178,2]
[347923570,1736207446342,-500.0,0.00019178,2]
[347923571,1736207446352,-500.0,0.00019178,2]
[347923572,1736207446362,-500.0,0.00019178,2]
[347923573,1736207446372,-667.53106085,0.00019178,2]
[347923574,1736207465485,3198.65972491,0.00014989,2]
[347923575,1736207465744,3198.65972491,0.00014998,2]
[347923576,1736207466012,3198.65972491,0.00014992,2]
[347923577,1736207681350,2180.4,0.00025,120]
[347923583,1736208091841,160.0,0.00022853,120]
[347923585,1736208151874,160.0,0.00023382,120]
[347923586,1736208211056,160.0,0.00023005,120]
[347923587,1736208233673,165.164469,0.00013973,2]
[347923588,1736208429133,-2895.2354057,0.00017327,2]
[347923589,1736208429156,-495.836,0.0001822,2]
[347923590,1736208429177,-356.2923903,0.00018272,2]
[347923591,1736208429198,-300.0,0.00018898,2]
[347923592,1736208429219,-4480.0,0.00018898,2]
[347923593,1736208429243,-3799.93184582,0.000189,2]
[347923594,1736208429264,-294.59740613,0.000189,2]
[347923595,1736208429284,-451.5012572,0.00018986,2]
[347923596,1736208429306,-3799.93184577,0.00019072,2]
[347923597,1736208429327,-167.63220536,0.00019078,2]
[347923598,1736208429348,-214.4778337,0.000191,2]
[347923599,1736208429368,-352.9020598,0.000191,2]
[347923600,1736208429388,-153.0,0.000191,2]